Cogmind - Beta 12 --- EXPLORER MODE // 2024.02.28 @ 09:58:02 Player: daffie Result: Self-destructed Performance ------------- Evolutions (2) 1000 Regions Visited (7) 1400 Robots Destroyed (57) 285 Value Destroyed (2709) 2709 Prototype IDs (25) 500 Alien Tech Used (0) 0 Bonus (284) 284 TOTAL SCORE: 6178 Bonus ------- Follower Combat Kills 14 Entered Garrisons 200 Aligned with FarCom 300 Friendly Fire -230 Cogmind --------- Core Integrity 373/550 Matter 288/300 Energy 375/375 System Corruption 0% Temperature Cool (0) Movement Hovering (108) Ox1 Location -8/Materials Parts ------- > --- POWER (2) -------- Light Nuclear Core Neutrino Core > --- PROPULSION (3) --- Airjet Airjet Gyrokinetic Inverter > --- UTILITY (5) ------ Advanced Cooling System Medium Storage Unit Improved Targeting Computer Improved Kinecellerator Improved Focal Shield > --- WEAPON (2) ------- Assault Cannon Enhanced Gauss Cannon > --- INVENTORY (10) --- Lightpack 2.0 Army-in-a-Box (30/30) Heavy Particle Cannon Peak State ------------ > --- POWER ------------ Light Ion Engine Light Nuclear Core > --- PROPULSION ------- Wheel Wheel Wheel > --- UTILITY ---------- Lightpack 2.0 Structural Scanner Hardened Light Armor Plating > --- WEAPON ----------- Guided Plasma Cannon Bore Cannon > --- INVENTORY -------- Wheel Terrain Scan Processor Army-in-a-Box Minigun Minigun [Rating: 59] Favorites ----------- Power Light Nuclear Core Engine Light Ion Engine Power Core Light Nuclear Core Propulsion Airjet Wheel Wheel Hover Unit Airjet Utility Medium Storage Unit Device Structural Scanner Storage Medium Storage Unit Processor Improved Targeting Computer Protection Hardened Light Armor Plating Weapon Assault Cannon Energy Gun Heavy EM Shotgun Energy Cannon Guided Plasma Cannon Ballistic Gun Gauss Rifle Ballistic Cannon Assault Cannon Impact Weapon Heavy Flail Slashing Weapon Katana Build | -11 -10 -10 -10 -9 -8 -8 -8 ------- Run | Jun Mat Min Exi Min Mat Gar Mat Slots Evolved 5 | . 1 . . . 4 . . Power 1 | . . . . . 1 . . Propulsion 1 | . . . . . 1 . . Utility 3 | . 1 . . . 2 . . Weapon . | . . . . . . . . Parts Attached 73 | 6 3 1 2 1 49 11 . Power 11 | 1 . . . . 8 2 . Engine 6 | 1 . . . . 5 . . Core 5 | . . . . . 3 2 . Reactor . | . . . . . . . . Propulsion 17 | 1 2 . . 1 10 3 . Treads . | . . . . . . . . Leg . | . . . . . . . . Wheel 9 | 1 2 . . 1 5 . . Hover 8 | . . . . . 5 3 . Flight . | . . . . . . . . Utility 20 | 2 1 . 1 . 13 3 . Device 10 | 1 . . . . 6 3 . Storage 2 | . . . 1 . 1 . . Processor 7 | 1 1 . . . 5 . . Hackware . | . . . . . . . . Protection 1 | . . . . . 1 . . Artifact . | . . . . . . . . Weapon 25 | 2 . 1 1 . 18 3 . Energy Gun 3 | 1 . . . . 2 . . Energy Cannon 3 | . . . 1 . 2 . . Ballistic Gun 6 | 1 . . . . 5 . . Ballistic Cannon 8 | . . 1 . . 4 3 . Launcher . | . . . . . . . . Special Weapon . | . . . . . . . . Impact Weapon 4 | . . . . . 4 . . Slashing Weapon 1 | . . . . . 1 . . Piercing Weapon . | . . . . . . . . Special Melee Weapon . | . . . . . . . . Unidentified Prototypes 2 | . . . . . 2 . . Parts Lost 6 | . . . . . 6 . . Power 3 | . . . . . 3 . . Propulsion 1 | . . . . . 1 . . Utility 1 | . . . . . 1 . . Weapon 1 | . . . . . 1 . . Highest Loss Streak 3 | . . . . . 3 . . To Critical Strikes . | . . . . . . . . Average Slot Usage (%) 89 | . 85 100 86 75 91 92 100 Engine 6 | . 12 12 12 12 7 2 . Core 7 | . . . . . 6 13 16 Wheel 9 | . 22 25 25 25 8 . . Hover 14 | . . . . . 16 25 25 Device 9 | . 12 12 5 . 7 14 25 Storage 7 | . . . 6 12 8 8 8 Processor 13 | . 13 25 11 . 19 11 8 Energy Gun 1 | . 12 7 . . . 2 . Energy Cannon 2 | . . . 5 12 2 . . Ballistic Gun 3 | . 12 12 6 . 6 . . Ballistic Cannon 7 | . . 4 12 12 2 11 16 Impact Weapon 1 | . . . . . 3 . . Slashing Weapon 1 | . . . . . 1 2 . Naked Turns . | . . . . . . . . Heaviest Build 52 | 7 7 15 27 27 38 52 52 Greatest Support 30 | 10 20 20 20 20 30 27 27 Greatest Overweight (x) 4 | . . . 1 1 4 1 1 Average Overweight (x) . | . . . . 1 . . 1 Largest Inventory Capacity 40 | 5 5 5 40 40 40 10 10 Average Capacity 14 | 5 5 5 23 40 11 10 10 Most Carried 12 | 1 1 . 8 11 12 10 10 Average Carried 8 | . . . 3 8 9 10 10 Final Capacity 40 | 5 5 5 40 40 10 10 10 Final Carried 11 | . . . 8 11 10 10 10 Class Distribution -------------------- 46% | Hacker-Mutant 18% | Hauler-Mutant 14% | Commander-Mutant 7% | Scavenger-Skirmisher 4% | Hacker-Skirmisher 4% | Hacker-Scout Dominant Class ---------------- Hacker-Mutant | -10/Materials Hacker-Mutant | -10/Mines Hauler-Mutant | -10/Exiles Hauler-Mutant | -9/Mines Hacker-Mutant | -8/Materials Hacker-Mutant | -8/Garrison Commander-Mutant | -8/Materials Resources | -11 -10 -10 -10 -9 -8 -8 -8 ----------- Run | Jun Mat Min Exi Min Mat Gar Mat Matter Collected 2036 | 53 289 14 . 214 1174 208 84 Remotely . | . . . . . . . . Salvage Created 2001 | 18 280 28 . 93 1425 106 51 Parts 122 | 2 22 3 . . 86 6 3 Haulers Intercepted 6 | . . . . . 5 . 1 Recyclers Shooed 3 | . . . . . 3 . . Parts Field Recycled . | . . . . . . . . Retrieved Matter . | . . . . . . . . Parts Self-Destructed . | . . . . . . . . Prevented . | . . . . . . . . Kills | -11 -10 -10 -10 -9 -8 -8 -8 ------- Run | Jun Mat Min Exi Min Mat Gar Mat Combat Hostiles Destroyed 38 | . 6 2 . 9 20 1 . Melee 1 | . . . . . 1 . . Guns 19 | . 6 1 . . 12 . . Cannons 18 | . . 1 . 9 7 1 . Classes Destroyed 14 | 1 5 . . 1 6 1 . Worker 4 | . 1 . . . 3 . . Builder 1 | . 1 . . . . . . Tunneler 3 | 1 . . . . 2 . . Hauler 6 | . . . . . 5 . 1 Recycler 3 | . . . . . 3 . . Mechanic 2 | . 1 . . . 1 . . Operator 1 | . . . . . 1 . . Watcher 5 | . . . . . 5 . . Swarmer 11 | . 2 2 . 2 5 . . Grunt 8 | . 4 . . . 4 . . Sentry 8 | . . . . . 7 1 . Hunter 4 | . . . . . 4 . . Programmer 1 | . . . . . . 1 . Assembled 7 | . . . . 7 . . . Best Kill Streak 10 | 1 8 2 . 3 10 1 1 Combat Bots Only 4 | . 4 2 . 3 4 1 . Max Kills in Single Turn 2 | 1 2 1 . 1 2 1 1 Gunslinging 1 | . 1 . . . . . . Exploded . | . . . . . . . . Melee 1 | . . . . . 1 . . Uniques/NPCs Destroyed . | . . . . . . . . Combat | -11 -10 -10 -10 -9 -8 -8 -8 -------- Run | Jun Mat Min Exi Min Mat Gar Mat Damage Taken 1152 | . 102 20 . 29 992 9 . Core 200 | . 18 5 . . 177 . . Absorbed by Shields . | . . . . . . . . Core Remaining (%) 95 | 100 . . . 90 . . . Volleys Fired 171 | 1 20 3 . 24 107 15 1 Largest 2 | 1 2 2 . 1 2 2 2 Hottest 120 | 20 60 77 . 120 101 101 101 Shots Fired 278 | 1 36 6 . 24 179 30 2 Gun 150 | 1 36 3 . . 110 . . Cannon 128 | . . 3 . 24 69 30 2 Launcher . | . . . . . . . . Special . | . . . . . . . . Kinetic 237 | 1 20 6 . 21 157 30 2 Thermal 41 | . 16 . . 3 22 . . Explosive . | . . . . . . . . Electromagnetic . | . . . . . . . . Robot Hit Streak 31 | 1 24 2 . 5 31 6 2 Robot Miss Streak 5 | . 1 1 . 5 3 1 . Penetration Max 1 | . . . . . 1 . . Secondary Targets 1 | . 1 . . . . . . Max Gunslinging Chain 1 | . 1 . . . . . . Shots Hit Robots 190 | 1 31 3 . 11 137 6 1 Core Hits 84 | 1 15 2 . 9 52 4 1 Critical Kills 3 | . . . . 3 . . . Critical Parts Destroyed 3 | . . . . 2 1 . . Critical Strikes 7 | . . . . 5 2 . . Destroy 5 | . . . . 5 . . . Blast 1 | . . . . . 1 . . Smash 1 | . . . . . 1 . . Melee Attacks 31 | . . . . . 12 19 . Impact 8 | . . . . . 8 . . Slashing 23 | . . . . . 4 19 . Piercing . | . . . . . . . . Sneak Attacks 4 | . . . . . 2 2 . Combat Hostiles . | . . . . . . . . Follow-up Attacks 2 | . . . . . 2 . . Damage Inflicted 4322 | 13 380 53 . 361 3000 487 28 Guns 1831 | 13 380 23 . . 1415 . . Cannons 1683 | . . 30 . 361 1169 95 28 Explosions 276 | . . . . . 101 175 . Melee 524 | . . . . . 307 217 . Ramming 8 | . . . . . 8 . . Kinetic 2865 | 13 239 53 . 253 2184 95 28 Thermal 750 | . 141 . . 108 501 . . Explosive 175 | . . . . . . 175 . Electromagnetic . | . . . . . . . . Impact 219 | . . . . . 219 . . Slashing 305 | . . . . . 88 217 . Piercing . | . . . . . . . . Highest Corruption 3 | . 1 1 1 1 3 . . Average Corruption 1 | . 1 1 1 1 1 . . Corruption Purged 3 | . . . . . 3 . . Corruption Blocked . | . . . . . . . . Effects 16 | . 1 1 . 2 12 . . Message Errors 7 | . 1 1 . 2 3 . . Matter Fused 1 | . . . . . 1 . . Heat Flow Errors 2 | . . . . . 2 . . Energy Discharges 2 | . . . . . 2 . . Data Loss (minor) 2 | . . . . . 2 . . Misfires 2 | . . . . . 2 . . Overload Shots . | . . . . . . . . Overflow Damage 183 | . . . . . 126 57 . Projectiles 6 | . . . . . 6 . . Explosions 61 | . . . . . 61 . . Melee 116 | . . . . . 59 57 . Knockbacks 11 | . . . . . 11 . . Impact 2 | . . . . . 2 . . Kinetic 9 | . . . . . 9 . . Secondary . | . . . . . . . . Self-Inflicted Damage 30 | . . . . . 30 . . Shots 1 | . . . . . 1 . . Rammed 1 | . . . . . 1 . . Targets Rammed 1 | . . . . . 1 . . Kicked . | . . . . . . . . Crushed . | . . . . . . . . Highest Temperature 529 | . 45 45 . 240 529 84 . Average Temperature 104 | . 20 23 . 56 136 35 . Received Heat Transfer 381 | . 96 . . . 285 . . Effects 18 | . . . . . 18 . . Shutdowns 5 | . . . . . 5 . . Energy Bleed 3 | . . . . . 3 . . Interference 3 | . . . . . 3 . . Matter Decay 1 | . . . . . 1 . . Short Circuit 1 | . . . . . 1 . . Damage (minor) 1 | . . . . . 1 . . Damage (major) 4 | . . . . . 4 . . Siege Activations . | . . . . . . . . Robots Corrupted . | . . . . . . . . Combat Hostiles . | . . . . . . . . Parts Fried 1 | . . . . . 1 . . Impact Corruptions 3 | . . . . . 3 . . Robots Melted . | . . . . . . . . Combat Hostiles . | . . . . . . . . Parts Melted 1 | . . . . . 1 . . Heat Transferred 1207 | . 325 . . 240 642 . . Parts Sabotaged . | . . . . . . . . Parts Stolen . | . . . . . . . . Parts Stripped . | . . . . . . . . Power Chain Reactions . | . . . . . . . . Missiles Intercepted . | . . . . . . . . Alert | -11 -10 -10 -10 -9 -8 -8 -8 ------- Run | Jun Mat Min Exi Min Mat Gar Mat Peak Influence 888 | 5 168 98 . 55 318 888 348 Initial 317 | . 2 46 . . . 2 317 Average 207 | 4 36 59 . 30 139 418 321 Maximum Alert Level 3 | . . . . . 1 3 1 Low Security (%) 60 | 100 100 100 . 100 73 20 . Level 1 24 | . . . . . 26 33 100 Level 2 9 | . . . . . . 28 . Level 3 5 | . . . . . . 17 . Level 4 . | . . . . . . . . Level 5 . | . . . . . . . . High Security . | . . . . . . . . Max Security . | . . . . . . . . Squads Dispatched 9 | . 1 . . . 8 . . Investigation 4 | . 1 . . . 3 . . Extermination . | . . . . . . . . Reinforcement 2 | . . . . . 2 . . Assault . | . . . . . . . . Garrison 3 | . . . . . 3 . . Intercept . | . . . . . . . . Searches Triggered . | . . . . . . . . Construction Impeded 1 | . . . . . 1 . . Haulers Reinforced . | . . . . . . . . Active Scanning Responses . | . . . . . . . . Cargo Convoy Interrupts . | . . . . . . . . Stealth | -11 -10 -10 -10 -9 -8 -8 -8 --------- Run | Jun Mat Min Exi Min Mat Gar Mat Distress Signals 2 | . . . . . 2 . . Communications Jammed . | . . . . . . . . Distress Signals . | . . . . . . . . Times Spotted 63 | . 7 2 . 11 39 1 3 Peak Tracking Total 5 | . 2 2 . 3 5 1 2 Tactical Retreats 4 | . . . . 2 2 . . Traps | -11 -10 -10 -10 -9 -8 -8 -8 ------- Run | Jun Mat Min Exi Min Mat Gar Mat Traps Triggered 4 | . 1 . . . 1 2 . Indirectly . | . . . . . . . . Trap Hack Attempts . | . . . . . . . . Triggered . | . . . . . . . . Disarmed . | . . . . . . . . Reprogrammed . | . . . . . . . . Reused . | . . . . . . . . Traps Extracted . | . . . . . . . . Installed . | . . . . . . . . Triggered . | . . . . . . . . Machines | -11 -10 -10 -10 -9 -8 -8 -8 ---------- Run | Jun Mat Min Exi Min Mat Gar Mat Machines Disabled 11 | . . . . . 3 8 . Max in Single Turn 1 | . . . . . 1 1 . Garrison Relay 5 | . . . . . . 5 . Phase Generator 1 | . . . . . . 1 . Machines Repaired . | . . . . . . . . Machines Sabotaged . | . . . . . . . . Overloaded Fab Kills . | . . . . . . . . Hacking | -11 -10 -10 -10 -9 -8 -8 -8 --------- Run | Jun Mat Min Exi Min Mat Gar Mat Machines Accessed 12 | . 1 . 1 . 7 3 . Terminals 8 | . 1 . . . 4 3 . Fabricators . | . . . . . . . . Repair Stations . | . . . . . . . . Recycling Units 1 | . . . . . 1 . . Scanalyzers 1 | . . . . . 1 . . Garrison Access 1 | . . . . . 1 . . Total Hacks 26 | . 3 . 1 . 17 5 . Successful 18 | . 3 . 1 . 11 3 . Failed 8 | . . . . . 6 2 . Catastrophic 1 | . . . . . 1 . . Database Lockouts . | . . . . . . . . Manual 13 | . 3 . 1 . 9 . . Terminals 21 | . 3 . . . 13 5 . Fabricators . | . . . . . . . . Repair Stations . | . . . . . . . . Recycling Units 1 | . . . . . 1 . . Scanalyzers 2 | . . . . . 2 . . Garrison Access 1 | . . . . . 1 . . Terminal Hacks 11 | . 1 . 1 . 6 3 . Open Door 1 | . . . . . . 1 . Level Access Points 1 | . . . . . 1 . . Branch Access Points 2 | . 1 . . . 1 . . Emergency Access Points 2 | . . . . . 1 1 . Security Status 1 | . . . . . 1 . . Zone Layout 2 | . . . . . 2 . . Garrison Registry 1 | . . . . . . 1 . EX-Prototype ID Bank 1 | . . . 1 . . . . Fabricator Hacks . | . . . . . . . . Repair Station Hacks . | . . . . . . . . Recycling Unit Hacks . | . . . . . . . . Scanalyzer . | . . . . . . . . Garrison Access Hacks 1 | . . . . . 1 . . Unlock Access 1 | . . . . . 1 . . Unauthorized Hacks 6 | . 2 . . . 4 . . Terminals 4 | . 2 . . . 2 . . Track 1 | . 1 . . . . . . Botnet 3 | . 1 . . . 2 . . Fabricators . | . . . . . . . . Repair Stations . | . . . . . . . . Recycling Units 1 | . . . . . 1 . . Tunnel 1 | . . . . . 1 . . Scanalyzers 1 | . . . . . 1 . . Extract 1 | . . . . . 1 . . Garrison Access . | . . . . . . . . Data Cores Recovered 1 | . . . . . 1 . . Used . | . . . . . . . . Hacking Detections 8 | . 1 . . . 6 1 . Full Trace Events 2 | . 1 . . . 1 . . Feedback Events . | . . . . . . . . Feedback Blocked . | . . . . . . . . Robot Schematics Acquired . | . . . . . . . . Robots Built . | . . . . . . . . Authchips . | . . . . . . . . Time . | . . . . . . . . Total Robot Build Rating . | . . . . . . . . Part Schematics Acquired 4 | . . . . . 4 . . Parts Built . | . . . . . . . . Authchips . | . . . . . . . . Time . | . . . . . . . . Total Part Build Rating . | . . . . . . . . Parts Repaired . | . . . . . . . . Time . | . . . . . . . . Parts Recycled . | . . . . . . . . Recycled Matter . | . . . . . . . . Retrieved Matter . | . . . . . . . . Retrieved Components . | . . . . . . . . Parts Scanalyzed . | . . . . . . . . Part Schematics Acquired . | . . . . . . . . Parts Damaged . | . . . . . . . . Bothacking | -11 -10 -10 -10 -9 -8 -8 -8 ------------ Run | Jun Mat Min Exi Min Mat Gar Mat Used RIF Installer . | . . . . . . . . Robots Hacked . | . . . . . . . . Non-combat . | . . . . . . . . Combat . | . . . . . . . . Robot Hacks Applied . | . . . . . . . . Relay Couplers Released 21 | . . . . . . 21 . Machine Destruction 18 | . . . . . . 18 . Programmers 3 | . . . . . . 3 . Fabnet Peak Effective % . | . . . . . . . . Robots Rewired 15 | . . . . . . 15 . Allies Hacked 1 | . . . . . . 1 . Hacks Repelled . | . . . . . . . . Allies | -11 -10 -10 -10 -9 -8 -8 -8 -------- Run | Jun Mat Min Exi Min Mat Gar Mat Total Allies 17 | . . . . 2 . 15 . Largest Group 14 | . . . . 2 . 14 14 Highest-Rated Group 229 | . . . . 39 . 229 229 Highest-Rated Ally 31 | . . . . 31 . 25 25 Total Orders 1 | . . . . . . 1 . STAY 1 | . . . . . . 1 . Ally Attacks 32 | . . . . 9 . . 23 Total Damage 274 | . . . . 104 . . 170 Kills 4 | . . . . 1 . . 3 Allies Corrupted . | . . . . . . . . Allies Melted . | . . . . . . . . Intel | -11 -10 -10 -10 -9 -8 -8 -8 ------- Run | Jun Mat Min Exi Min Mat Gar Mat Robot Analysis Total . | . . . . . . . . Derelict Logs Recovered . | . . . . . . . . Drone Launches . | . . . . . . . . Drone Recoveries . | . . . . . . . . Exploration | -11 -10 -10 -10 -9 -8 -8 -8 ------------- Run | Jun Mat Min Exi Min Mat Gar Mat Turns Passed 4081 | 41 182 153 227 526 1641 1217 94 Spaces Moved 3014 | 42 152 178 250 419 1022 884 67 Core 14 | 14 . . . . . . . Treads . | . . . . . . . . Legs . | . . . . . . . . Wheels 1322 | 28 152 178 250 419 295 . . Hover 1678 | . . . . . 727 884 67 Flight . | . . . . . . . . Fastest Speed 50 | 50 80 80 80 95 52 52 108 Average Speed 96 | 70 80 80 86 95 94 109 108 Slowest Speed 300 | 80 80 80 95 95 300 112 108 Overloaded Moves . | . . . . . . . . Propulsion Burnouts . | . . . . . . . . Robots Hopped . | . . . . . . . . Cave-ins Triggered 1 | . . . . . 1 . . Exploration Rate (%) 50 | 3 24 57 61 71 79 97 11 Regions Visited 7 Branch Regions 3 Pre-discovered Areas 1 | . . . . . 1 . . Known Exits Taken 6 | 1 1 1 1 1 1 . . Unknown Exits Taken . | . . . . . . . . Scrap Searched . | . . . . . . . . Spaces Dug 62 | . . . . . 56 6 . Terrain Destroyed 188 | . . 2 . 16 66 103 1 Melee 9 | . . . . . 5 4 . Projectile 40 | . . 2 . 16 13 8 1 AOE 137 | . . . . . 46 91 . Terrain Rammed . | . . . . . . . . Walls Destroyed . | . . . . . . . . Machines Disabled . | . . . . . . . . Actions | -11 -10 -10 -10 -9 -8 -8 -8 --------- Run | Jun Mat Min Exi Min Mat Gar Mat Total 3855 | 49 175 182 261 522 1505 1075 86 Wait 437 | . . . 1 75 273 70 18 Move 3008 | 41 151 177 249 418 1022 883 67 Hop . | . . . . . . . . Pick Up 16 | 1 . . 5 3 7 . . Fast Attach 46 | 5 2 1 . . 31 7 . Attach 9 | 1 . . 2 . 6 . . Detach 1 | . . . . . 1 . . Swap 18 | . 1 . . 1 12 4 . Drop 51 | . 1 1 4 1 35 9 . Fire 171 | 1 20 3 . 24 107 15 1 Melee 29 | . . . . . 10 19 . Ram 1 | . . . . . 1 . . Kick . | . . . . . . . . Crush . | . . . . . . . . Escape Stasis . | . . . . . . . . Rewire 68 | . . . . . . 68 . Trap . | . . . . . . . . Miscellaneous . | . . . . . . . . Route ------- -11/Junkyard -10/Materials (discovered 2 exits: *Min x2) -10/Mines -10/Exiles -9/Mines (discovered 2 exits: *Mat x2) -8/Materials (discovered 4 exits: *Fac x3 / Gar) -8/Garrison (discovered 3 exits: *Mat x3) -8/Materials History --------- Turn | Location | Event 5 | -11/Junkyard | Identified exit to Materials 5 | -11/Junkyard | Discovered exit to Materials (range 15) 42 | -11/Junkyard | Entered Materials 42 | -10/Materials | Evolved 1 slot: Utility x1 129 | -10/Materials | Identified exit to Mines 224 | -10/Materials | Entered Mines 307 | -10/Mines | Build established: Hacker-Mutant 311 | -10/Mines | A weapon hastily lodged in a ceiling crevice suddenly fell to the ground 372 | -10/Mines | Deemed a non-threat by the Exiles lab entrance 372 | -10/Mines | Identified exit to Exiles 372 | -10/Mines | Discovered exit to Exiles (range 6) 377 | -10/Mines | Entered Exiles 397 | -10/Exiles | Met 8R-AWN 411 | -10/Exiles | Met EX-HEX 432 | -10/Exiles | Met EX-BIN 442 | -10/Exiles | Aligned with FarCom system 443 | -10/Exiles | Given EX-Vault access code 474 | -10/Exiles | Opened EX-Vault 483 | -10/Exiles | Found Lightpack 2.0 489 | -10/Exiles | Found Gui. Plasma Cannon 513 | -10/Exiles | Found Army-in-a-Box 532 | -10/Exiles | Warned to stay clear of 0b10 Research branches 559 | -10/Exiles | Met EX-DEC 594 | -10/Exiles | Identified exit to Mines 594 | -10/Exiles | Discovered exit to Mines (range 10) 604 | -10/Exiles | Stole three prototypes: Lightpack 2.0, Gui. Plasma Cannon, Army-in-a-Box 604 | -10/Exiles | Entered Mines 607 | -9/Mines | Assembled infested the area 612 | -9/Mines | Assisted by a Guerilla fighting off Assembled 688 | -9/Mines | Identified exit to Materials 688 | -9/Mines | Discovered exit to Materials (range 10) 781 | -9/Mines | Build established: Hauler-Mutant 1092 | -9/Mines | Discovered exit to Materials (range 9) 1130 | -9/Mines | Entered Materials 1130 | -8/Materials | Evolved 4 slots: Power x1, Propulsion x1, Utility x2 1183 | -8/Materials | Identified exit to Factory 1269 | -8/Materials | Crushed by falling debris 1678 | -8/Materials | Build established: Scavenger-Skirmisher 2000 | -8/Materials | Garrison activated, responded to threat 2020 | -8/Materials | Lost 3 parts (2p1w) 2546 | -8/Materials | Build established: Hacker-Mutant 2771 | -8/Materials | Identified exit to Garrison 2771 | -8/Materials | Entered Garrison 2771 | -8/Garrison | Discovered recently destroyed garrison 2870 | -8/Garrison | Garrison Relay disabled 3016 | -8/Garrison | Garrison Relay disabled 3032 | -8/Garrison | Garrison Relay disabled 3179 | -8/Garrison | Identified exit to Materials 3179 | -8/Garrison | Discovered exit to Materials (range 10) 3399 | -8/Garrison | Discovered exit to Materials (range 24) 3399 | -8/Garrison | Discovered exit to Materials (range 43) 3399 | -8/Garrison | Discovered exit to Materials (range 65) 3417 | -8/Garrison | Garrison Relay disabled 3606 | -8/Garrison | Phase Generator disabled 3770 | -8/Garrison | Garrison Relay disabled 3776 | -8/Garrison | Build established: Commander-Mutant 3988 | -8/Garrison | Entered Materials 3988 | -8/Materials | Accompanied by 14 allies 4082 | -8/Materials | Self-destructed Last Messages --------------- Receiving FarCom transmissions... Pest 3a destroyed. S-10 Pest Lgt. Ion Engine blown off. S-10 Pest Flight Unit blown off. Imp 3d destroyed. S-10 Pest Lgt. Assault Rifle blown off. S-10 Pest Flight Unit blown off. Imp 3f destroyed. Imp 3a destroyed. Imp 3e destroyed. Imp 3c destroyed. Imp 3b destroyed. S-10 Pest destroyed. Slug penetrates S-10 Pest. S-10 Pest destroyed. Acquired 76 matter. Acquired 8 matter. K-01 Serf collects debris. W-25 Informer destroyed. A-02 Transporter destroyed. Map ----- +----------------------------------------------------+ | ?????????????????????????????????????? | | ?????????????????????????????????????? | | ?????????????????????????????????????? | | ?????????????????????????????????????? | | ?????????????????????????????????????? | | ?????????????????????????????????????? | | ?????????????????????????????????????? | | ?????????????????????????????????????? | | ?????????????????????????????????????? | | ?????????????????????????????????????? | | ?????????????????????????????????????? | | ?????????????????????????????????????? | | ?????????????##??????????????????????? | | ????????????? ??????????????????????? | | ?????????????/ ??????????????????????? | | ????????????? ??????????????????????? | | ????????????? "??????????????????????? | | ????????????# ??????????????????????? | | ????????????#;+####+?????????????????? | | ????????????# ??????????????????? | | ????????????# ???????????????????? | | ???????????s/[!% ???o????????????????? | | ???Y??????s?#%[*#????????????????????? | | ?############[! #????????????????????? | | ?# #????????????????????? | | ?# h @ #????????????????????? | | ?# lgh #????????????????????? | | ?# ##/###????????????????????? | | ?# # b #????????????????????? | | ?# # #????????????????????? | | ?# # #????????????????????? | | ?# /g #????????????????????? | | ?# # #????????????????????? | | ?# #/ = #????????????????????? | | ?# # #????????????????????? | | ?# + #????????????????????? | | ?# #### ## #????????????????????? | | ?# #??# #######????????????????????? | | ?# #??# #??????????????????????????? | | ?# #??# #??????????????????????????? | | ?# #??# #??????????????????????????? | | ?# #??# #??????????????????????????? | | ?# #??# #??????????????????????????? | | ?# #?##+########???????????????????? | | ?# #?# #???????????????????? | | ?# #?# ! #???????????????????? | | ?# #?# % """ #???????????????????? | | ?# #?# = """"" + ????????????????? | | ?# ### """"" # ???????????????? | | ?# + """"" ????????????????????? | +----------------------------------------------------+ Best States ------------- Heat Dissipation 62 Energy Generation 28 Energy Capacity 430 Matter Stores 300 Matter Capacity 300 Sight Range 16 Terrain Scan Range 14 Terrain Scan Density 160 ECM Strength 2 Armor Coverage 150 Resistance: KI 60 Resistance: TH 35 Resistance: EX 35 Resistance: EM 35 Resistance: I 35 Resistance: S 35 Resistance: P 35 Evasion (%) 54 Targeting Accuracy 6 Kinecelleration 40 Offensive Hacking 20 Item Schematics ----------------- Hrd. Light Armor Plating | -8/Materials | Extracted Reaction Control System | -8/Materials | Extracted Com. Matter Pod | -8/Materials | Extracted Cesium-ion Thruster | -8/Materials | Extracted Robot Schematics ------------------ None Fabricated ------------ Nothing Alien Tech Used ----------------- None Achievements -------------- None Challenges ------------ None Game ------ Seed chipmonk funk Manual? 1 Play Time 01:31:55 Cumulative 2755.6 hours Start 2024.02.27 @ 18:35:46 End 2024.02.28 @ 09:58:02 Sessions 1 Manual Loads 0 Difficulty Explorer Special Mode None Game No. 92 Rogue 0 Adventurer 0 Explorer 92 Win Type - Total 6 Types 3/0/1/2/0/0/0/0/0 Lore% 65 Gallery% 89 Achievement% 100 Wizard Run 0 Options --------- ASCII 0 Keyboard 0 Movement Mouse Keybinds 0 Fullscreen 0 Font 28/Smallcaps Map View 76x50 Tactical HUD 0 Map Filters NONE Filters NONE Steam 1 RUN: 609aaa27-7066-4ddf-8aef-609bb4b06e9c